bitfinex/quotes_BTCUSD_20220115
["timestamp","ask_amount","ask_price","bid_price","bid_amount"]
[1642279381081,2.76929162,43616.0,43611.0,0.0007]
[1642279381682,2.76845675,43616.0,43611.0,0.0007]
[1642279381883,2.76929162,43616.0,43611.0,0.0007]
[1642279382534,0.30946163,43616.0,43611.0,0.0007]
[1642279382736,0.00090363,43616.0,43615.0,1.09645473]
[1642279382936,6.876e-05,43616.0,43615.0,1.51889488]
[1642279383135,6.876e-05,43616.0,43615.0,1.61889488]
[1642279383136,0.00090363,43616.0,43615.0,1.61889488]
[1642279383540,0.00090363,43616.0,43615.0,2.41889488]
[1642279383734,0.00090363,43616.0,43615.0,2.76049055]
[1642279383934,0.00090363,43616.0,43615.0,1.95049055]
[1642279384136,6.876e-05,43616.0,43615.0,2.53845362]
[1642279384936,6.876e-05,43616.0,43615.0,0.521171]
[1642279385138,6.876e-05,43616.0,43615.0,0.74658689]
[1642279385538,6.876e-05,43616.0,43615.0,1.09658689]
[1642279386480,6.876e-05,43616.0,43615.0,2.10412252]
[1642279386679,6.876e-05,43616.0,43615.0,1.77824096]
[1642279387280,6.876e-05,43616.0,43615.0,2.78596521]
[1642279387481,6.876e-05,43616.0,43615.0,2.10022944]
[1642279387682,6.876e-05,43616.0,43615.0,1.41857537]
[1642279387683,8.76e-06,43616.0,43615.0,1.41857537]
[1642279389486,8.76e-06,43616.0,43615.0,3.32274058]
[1642279389940,8.76e-06,43616.0,43615.0,2.63686512]
[1642279390543,8.76e-06,43616.0,43615.0,1.06986512]
[1642279391345,8.76e-06,43616.0,43615.0,1.06857537]
[1642279391544,8.76e-06,43616.0,43615.0,1.75445545]
[1642279392542,8.76e-06,43616.0,43615.0,2.00055993]
[1642279392742,8.76e-06,43616.0,43615.0,0.74658689]
[1642279392942,8.76e-06,43616.0,43615.0,0.64658689]
[1642279393145,8.76e-06,43616.0,43615.0,0.421171]
[1642279396293,8.76e-06,43616.0,43615.0,0.376571]
[1642279397089,0.00098413,43616.0,43615.0,0.376571]
[1642279401378,0.00098413,43616.0,43615.0,0.331571]
[1642279405733,0.00098413,43616.0,43615.0,0.54336278]
[1642279406334,0.00098413,43616.0,43615.0,0.331571]
[1642279406532,0.00098413,43616.0,43615.0,0.50017983]
[1642279409286,0.00098413,43616.0,43615.0,1.08806674]
[1642279410184,0.00098413,43616.0,43615.0,0.50017983]
[1642279410586,0.00098413,43616.0,43615.0,1.08806674]
[1642279411585,0.00098413,43616.0,43615.0,1.04316674]
[1642279412645,0.00098413,43616.0,43615.0,0.45527983]
[1642279413847,0.00098413,43616.0,43615.0,0.241971]
[1642279414052,0.00098413,43616.0,43615.0,1.34727957]
[1642279414247,0.34439773,43616.0,43615.0,1.10530857]
[1642279414456,0.34439773,43616.0,43615.0,0.68588008]
[1642279414649,0.34439773,43616.0,43613.0,0.58798189]
[1642279416049,0.34439773,43616.0,43610.0,0.58798189]
[1642279416487,0.34439773,43616.0,43610.0,0.54315908]
[1642279416688,0.0009268,43615.0,43610.0,0.54315908]
[1642279417095,0.22888362,43615.0,43610.0,0.54315908]
[1642279417498,0.19691046,43614.0,43607.0,0.89856927]
[1642279417690,0.19691046,43614.0,43608.0,0.375423]
[1642279417888,0.00085806,43613.0,43608.0,0.375423]
[1642279420136,0.00040031,43615.0,43608.0,0.375423]
[1642279420333,0.00085806,43613.0,43608.0,0.375423]
[1642279420533,0.00085806,43613.0,43608.0,1.06130308]
[1642279421333,0.00040031,43615.0,43608.0,1.06130308]
[1642279421533,0.00085806,43613.0,43608.0,1.06130308]
[1642279421733,0.00085806,43613.0,43609.0,1.10619089]
[1642279421934,0.00085806,43613.0,43610.0,0.375423]
[1642279422133,0.00033126,43612.0,43610.0,0.375423]
[1642279423337,0.00033126,43612.0,43610.0,1.06130308]
[1642279424186,0.00033126,43612.0,43610.0,0.375423]
[1642279424590,0.00033126,43612.0,43610.0,1.06130308]
[1642279425387,0.00033126,43612.0,43611.0,0.58813648]
[1642279425588,0.00033126,43612.0,43611.0,0.96355948]
[1642279426487,0.00033126,43612.0,43611.0,0.91895948]
[1642279426890,0.00033126,43612.0,43611.0,0.375423]
[1642279427290,0.00033126,43612.0,43611.0,0.5889173]
[1642279427541,0.00033126,43612.0,43611.0,0.58798802]
[1642279427937,0.00033126,43612.0,43611.0,0.58801562]
[1642279428137,0.00033126,43612.0,43611.0,0.375423]
[1642279429639,0.00033126,43612.0,43611.0,0.59372555]
[1642279429840,0.00033126,43612.0,43611.0,0.59211906]
[1642279430045,0.00033126,43612.0,43611.0,0.375423]
[1642279431488,0.00033126,43612.0,43611.0,0.330723]
[1642279435938,0.00033126,43612.0,43611.0,1.11638967]
[1642279436534,0.00033126,43612.0,43611.0,1.07168967]
[1642279438036,0.00033126,43612.0,43611.0,0.87413714]
[1642279440688,0.00033126,43612.0,43611.0,0.286023]
[1642279440890,0.00033126,43612.0,43611.0,0.87413714]
[1642279441491,0.24491531,43612.0,43611.0,0.82943714]
[1642279441690,0.24491531,43612.0,43611.0,0.58811414]
[1642279442544,0.24491531,43612.0,43609.0,0.58811414]
[1642279442744,0.24491531,43612.0,43610.0,0.375448]
[1642279443444,0.24491531,43612.0,43608.0,0.58811414]
[1642279444044,0.24491531,43612.0,43609.0,0.58811414]
[1642279444546,0.24577337,43612.0,43607.0,0.68588008]
[1642279444846,0.24577337,43612.0,43606.0,0.58811414]
[1642279444847,0.33348701,43608.0,43606.0,0.58811414]
[1642279445044,0.33348701,43608.0,43607.0,0.375448]
[1642279445244,0.33348701,43608.0,43607.0,0.37551676]
[1642279445945,0.00085808,43610.0,43607.0,0.37551676]
[1642279446585,0.24491531,43612.0,43607.0,0.33061676]
[1642279446785,0.29950141,43610.0,43607.0,6.876e-05]
[1642279446986,0.00038601,43608.0,43607.0,6.876e-05]
[1642279447184,0.00038601,43608.0,43606.0,8.595e-05]
[1642279447384,0.00038601,43608.0,43607.0,0.375459]
[1642279448487,0.33372957,43608.0,43606.0,8.595e-05]
[1642279448886,0.33372957,43608.0,43605.0,0.00010314]
[1642279450134,0.88579182,43605.0,43604.0,0.00012033]
[1642279451636,0.23579182,43605.0,43603.0,0.54353447]
[1642279451835,0.23579182,43605.0,43604.0,0.375459]
[1642279452035,0.2365494,43605.0,43604.0,0.375459]
[1642279453036,0.2365494,43605.0,43602.0,0.00064887]
[1642279453236,0.2365494,43605.0,43603.0,0.375459]
[1642279453440,0.2365494,43605.0,43602.0,0.00064887]
[1642279453684,0.2365494,43605.0,43600.0,0.0005336]
[1642279453885,0.2365494,43605.0,43601.0,0.00064888]
[1642279454486,0.2365494,43605.0,43602.0,0.37570859]
[1642279455886,0.22629328,43605.0,43602.0,0.37570859]
[1642279456685,0.22629328,43605.0,43602.0,0.33100859]
[1642279457085,0.00034079,43604.0,43602.0,0.33100859]
[1642279457434,0.00127945,43603.0,43602.0,0.00024959]
[1642279458338,0.25567315,43603.0,43602.0,0.00024959]
[1642279458738,0.63116715,43603.0,43602.0,0.00024959]
[1642279458936,0.73116715,43603.0,43602.0,0.00024959]
[1642279459537,0.63116715,43603.0,43602.0,0.00024959]
[1642279459736,0.86562027,43603.0,43602.0,0.00024959]
[1642279461791,2.53596,43602.0,43596.0,0.74956285]
[1642279461991,2.53596,43602.0,43596.0,0.73956285]
[1642279462195,0.00122224,43599.0,43597.0,0.00012033]
[1642279462392,2.275494,43598.0,43597.0,0.00012033]
[1642279462793,2.47551719,43598.0,43597.0,0.00012033]
[1642279463191,2.47551719,43598.0,43594.0,0.0001719]
[1642279463492,0.11469758,43597.0,43594.0,0.0001719]
[1642279463692,0.65115915,43596.0,43594.0,0.0001719]
[1642279464293,1.64397214,43595.0,43594.0,0.0001719]
[1642279464495,2.01946614,43595.0,43594.0,0.0001719]
[1642279464796,0.61946614,43595.0,43594.0,0.0001719]
[1642279466740,0.40058969,43589.0,43586.0,0.00392607]
[1642279466941,0.40058969,43589.0,43587.0,0.365494]
[1642279467140,0.40058969,43589.0,43587.0,0.36561433]
[1642279467541,0.40058969,43589.0,43587.0,0.00012033]
[1642279467741,0.24513011,43588.0,43587.0,0.00012033]
[1642279468441,0.60472502,43589.0,43587.0,0.00012033]
[1642279469489,0.40058969,43589.0,43587.0,0.00012033]
[1642279469692,0.00082264,43595.0,43587.0,0.00012033]
[1642279470190,0.00082264,43595.0,43588.0,0.0457]
[1642279470389,0.00082264,43595.0,43588.0,0.0357]
[1642279470589,0.00082264,43595.0,43589.0,8.595e-05]
[1642279470788,0.00082264,43595.0,43589.0,0.00066452]
[1642279471188,0.00082264,43595.0,43590.0,6.876e-05]
[1642279471790,0.00082264,43595.0,43591.0,0.421271]
[1642279472088,0.00082264,43595.0,43594.0,1.775571]
[1642279472290,0.00082264,43595.0,43594.0,1.821271]
[1642279472543,0.00083651,43600.0,43595.0,1.30673442]
[1642279472742,0.00083651,43600.0,43599.0,0.25067614]
[1642279473043,0.70285293,43607.0,43599.0,0.67194714]
[1642279473242,0.00083656,43602.0,43599.0,0.0457]
[1642279473543,0.00083656,43602.0,43600.0,0.375571]
[1642279473746,0.00083656,43602.0,43601.0,0.0457]
[1642279474044,0.00097408,43602.0,43601.0,0.0457]
[1642279474246,0.00013752,43602.0,43601.0,0.0457]
[1642279475144,0.00013752,43602.0,43601.0,0.27173593]
[1642279475346,0.00013752,43602.0,43601.0,0.64730693]
[1642279475946,0.00013752,43602.0,43601.0,0.421271]
[1642279476192,0.00013752,43602.0,43601.0,0.63511773]
[1642279476794,0.00013752,43602.0,43601.0,0.59031773]
[1642279476988,0.00056038,43602.0,43601.0,0.59031773]
[1642279477390,0.00056038,43602.0,43601.0,0.376471]
[1642279477591,0.00056038,43602.0,43601.0,0.59213025]
[1642279477891,0.00056038,43602.0,43601.0,0.0009]
[1642279481340,0.00056038,43602.0,43601.0,2.376471]
[1642279481542,0.00056038,43602.0,43601.0,2.476471]
[1642279481941,0.00056038,43602.0,43601.0,2.48334053]
[1642279482138,0.00056038,43602.0,43601.0,2.476471]
[1642279482539,0.00056038,43602.0,43601.0,3.07097424]
[1642279482742,0.00085988,43604.0,43603.0,1.30014628]
[1642279482939,0.00085988,43604.0,43603.0,1.94204976]
[1642279483440,0.00052291,43604.0,43603.0,2.14204976]
[1642279483687,0.00052291,43604.0,43603.0,0.74204976]
[1642279483887,0.00012033,43609.0,43603.0,0.9992875]
[1642279484089,0.00012033,43609.0,43604.0,0.375571]
[1642279484289,0.584,43626.0,43608.0,2.58224224]
[1642279484290,0.00121295,43620.0,43608.0,2.58224224]
[1642279484492,0.00121295,43620.0,43609.0,0.3184583]
[1642279484689,0.00029223,43619.0,43610.0,0.375571]
[1642279484891,0.00029223,43619.0,43611.0,0.0457]
[1642279485090,0.00027504,43618.0,43612.0,0.58195796]
[1642279485289,0.00027504,43618.0,43613.0,0.0457]
[1642279485490,0.00025785,43617.0,43613.0,0.0457]
[1642279485891,0.37581166,43616.0,43613.0,0.0457]
[1642279486293,0.00022347,43615.0,43613.0,0.0457]
[1642279486693,0.00020628,43614.0,43613.0,0.0011]
[1642279488537,0.37577728,43614.0,43613.0,0.0011]
[1642279489538,0.00020628,43614.0,43613.0,0.0011]
[1642279491700,0.00020628,43614.0,43605.0,0.98062462]
[1642279491900,0.00020628,43614.0,43606.0,0.421271]
[1642279492103,0.00018909,43613.0,43606.0,0.421271]
[1642279492305,0.00093104,43612.0,43606.0,0.421271]
[1642279492503,0.87345629,43620.0,43607.0,1.7]
[1642279492801,0.00012033,43619.0,43608.0,0.27016663]
[1642279493001,0.00012033,43619.0,43609.0,0.0457]
[1642279493200,0.00010314,43618.0,43609.0,0.0457]
[1642279493601,8.595e-05,43617.0,43609.0,0.0457]
[1642279493903,6.876e-05,43616.0,43609.0,0.0457]
[1642279494302,0.25341429,43613.0,43609.0,0.0457]
[1642279497048,0.00038093,43612.0,43609.0,0.0457]
[1642279498690,0.00038093,43612.0,43608.0,6.876e-05]
[1642279499086,0.00038093,43612.0,43605.0,0.00012033]
[1642279499287,0.00038093,43612.0,43606.0,0.375571]
[1642279499688,0.00038093,43612.0,43607.0,8.595e-05]
[1642279500193,0.00038093,43612.0,43605.0,0.00012033]
[1642279500389,0.00038093,43612.0,43606.0,0.375571]
[1642279500789,0.00038093,43612.0,43607.0,8.595e-05]
[1642279501389,0.00038093,43612.0,43605.0,0.00012033]
[1642279501589,0.00038093,43612.0,43606.0,0.375571]
[1642279501990,0.00093098,43614.0,43607.0,8.595e-05]
[1642279502637,0.00093098,43614.0,43605.0,0.00012033]
[1642279503041,0.25855375,43616.0,43605.0,0.00012033]
[1642279503236,0.00093099,43614.0,43605.0,0.00012033]
[1642279503438,0.00093099,43614.0,43605.0,0.05316615]
[1642279503837,0.00093099,43614.0,43609.0,0.23098327]
[1642279504136,0.25855375,43616.0,43609.0,0.23098327]
[1642279504339,0.00093101,43614.0,43609.0,0.23098327]
[1642279504539,0.00093101,43614.0,43610.0,0.20838445]
[1642279504740,0.00093101,43614.0,43610.0,0.20288342]
[1642279504939,0.00093101,43614.0,43609.0,0.23098327]
[1642279505139,0.00093101,43614.0,43610.0,0.20408238]
[1642279505344,0.00044946,43616.0,43610.0,0.20408238]
[1642279505542,0.00093102,43614.0,43610.0,0.20408238]
[1642279505943,0.00093102,43614.0,43611.0,0.0457]
[1642279506602,0.00044946,43616.0,43611.0,0.0457]
[1642279506801,0.00093101,43615.0,43611.0,0.0008]
[1642279507005,0.00057173,43613.0,43611.0,0.0008]
[1642279507203,0.00057173,43613.0,43612.0,2.47683905]
[1642279507502,0.00057173,43613.0,43612.0,2.52253905]
[1642279507702,0.00057173,43613.0,43612.0,2.62253905]
[1642279508905,0.00057173,43613.0,43612.0,3.21025264]
[1642279509106,0.05850549,43637.0,43616.0,0.00139376]
[1642279509308,0.0012141,43632.0,43617.0,0.0457]
[1642279509507,0.00010314,43622.0,43618.0,0.22691678]
[1642279509708,0.00372343,43622.0,43619.0,0.0457]
[1642279509940,8.595e-05,43621.0,43619.0,0.0457]
[1642279510342,6.876e-05,43620.0,43619.0,0.0457]
[1642279511846,6.876e-05,43620.0,43619.0,0.63197673]
[1642279512447,6.876e-05,43620.0,43619.0,0.63150151]
[1642279512952,6.876e-05,43620.0,43619.0,0.42079578]
[1642279513902,6.876e-05,43620.0,43616.0,0.00139376]
[1642279514502,0.00362029,43618.0,43616.0,0.00139376]
[1642279514902,0.00362029,43617.0,43616.0,0.00139376]
[1642279515105,0.00362029,43617.0,43616.0,0.37696476]
[1642279516904,0.00362029,43617.0,43616.0,0.33216476]
[1642279518743,0.00224058,43618.0,43613.0,1.15]
[1642279518943,0.00224058,43618.0,43614.0,0.375426]
[1642279519142,0.00224058,43618.0,43612.0,6.876e-05]
[1642279519543,0.00093097,43619.0,43611.0,8.595e-05]
[1642279519744,0.00224058,43614.0,43611.0,8.595e-05]
[1642279520044,0.00224058,43614.0,43612.0,0.375426]
[1642279521895,0.19501818,43613.0,43612.0,0.375426]
[1642279522096,0.19501818,43613.0,43612.0,0.330426]
[1642279522297,0.19501818,43613.0,43612.0,0.33049476]
[1642279522702,0.1962341,43613.0,43612.0,6.876e-05]
[1642279522899,0.8462341,43613.0,43612.0,6.876e-05]
[1642279523097,0.8462341,43613.0,43610.0,0.00010314]
[1642279523098,0.1962341,43613.0,43610.0,0.00010314]
[1642279523497,0.1962341,43613.0,43606.0,0.0001719]
[1642279523700,0.20799602,43606.0,43605.0,0.00018909]
[1642279523898,0.20799602,43606.0,43605.0,0.37563509]
[1642279524099,0.20799602,43606.0,43605.0,0.00018909]
[1642279524496,0.20799602,43606.0,43604.0,0.00020628]
[1642279527041,0.20799602,43606.0,43598.0,0.54326615]
[1642279527243,0.20799602,43606.0,43602.0,0.00085268]
[1642279527840,0.27865647,43607.0,43602.0,0.00085268]
[1642279528040,0.58076791,43612.0,43602.0,0.00085268]
[1642279528241,0.58076791,43612.0,43599.0,0.20180596]
[1642279528541,0.00012033,43611.0,43602.0,0.00085268]
[1642279528798,0.23570177,43606.0,43602.0,0.00085268]
[1642279528994,0.49231625,43606.0,43602.0,0.00085268]
[1642279529394,0.49231625,43606.0,43600.0,6.876e-05]
[1642279529597,0.49231625,43606.0,43602.0,0.00085269]
[1642279530096,0.00224058,43604.0,43602.0,0.00085269]
[1642279530797,0.00224058,43604.0,43601.0,0.00085272]
[1642279530995,0.00224058,43604.0,43599.0,1.07205167]
[1642279531299,0.00224058,43604.0,43600.0,0.375446]
[1642279531896,0.19315284,43599.0,43597.0,0.68588008]
[1642279532095,0.19315284,43599.0,43598.0,0.330146]
[1642279535343,0.19315284,43599.0,43597.0,0.58793467]
[1642279535544,0.19539342,43599.0,43596.0,0.58877938]
[1642279536593,0.19539342,43599.0,43596.0,0.58793467]
[1642279537791,0.19539342,43599.0,43595.0,0.58847877]
[1642279537991,0.19539342,43599.0,43596.0,0.375512]
[1642279538191,0.19539342,43599.0,43596.0,0.37558076]
[1642279540643,0.19315284,43599.0,43596.0,0.37558076]
[1642279540842,0.00224058,43598.0,43596.0,0.37558076]
[1642279541944,0.00224058,43598.0,43596.0,0.37058076]
[1642279545998,0.00224058,43597.0,43596.0,0.37058076]
[1642279546698,0.19315284,43599.0,43597.0,0.0013345]
[1642279547099,0.19315284,43599.0,43597.0,3.45e-05]
[1642279548046,0.25661448,43606.0,43597.0,3.45e-05]
[1642279548449,8.595e-05,43605.0,43597.0,3.45e-05]
[1642279548650,0.2152019,43605.0,43597.0,3.45e-05]
[1642279548849,0.2152019,43605.0,43599.0,0.00084463]
[1642279549051,0.00128832,43604.0,43599.0,0.00084463]
[1642279549250,0.00128832,43604.0,43600.0,8.595e-05]
[1642279549651,0.04698832,43604.0,43600.0,8.595e-05]
[1642279549850,0.00126472,43601.0,43600.0,8.595e-05]
[1642279550052,2.77684563,43601.0,43600.0,8.595e-05]
[1642279550249,2.77684563,43601.0,43599.0,0.00084463]
[1642279550451,2.45266003,43600.0,43599.0,0.00084463]
[1642279550651,2.82817403,43600.0,43599.0,0.00084463]
[1642279550850,2.82817403,43600.0,43599.0,0.00094777]
[1642279551055,3.19803344,43600.0,43599.0,0.00010314]
[1642279551305,3.19928399,43600.0,43599.0,0.00010314]
[1642279551504,3.29928399,43600.0,43598.0,0.00012033]
[1642279551704,2.81587423,43599.0,43598.0,0.00012033]
[1642279552206,2.81587423,43599.0,43585.0,0.74348744]
[1642279552207,0.29050966,43588.0,43585.0,0.74348744]
[1642279552404,0.29050966,43588.0,43586.0,0.375514]
[1642279552604,0.29050966,43588.0,43586.0,0.00020628]
[1642279553507,0.54193552,43588.0,43586.0,0.00020628]
[1642279553907,0.54193552,43588.0,43583.0,0.00025785]
[1642279554308,0.21618789,43587.0,43583.0,0.00025785]
[1642279554509,0.22020256,43587.0,43583.0,0.00025785]
[1642279554706,0.21723945,43587.0,43583.0,0.00025785]
[1642279554942,0.54193552,43588.0,43583.0,0.000693]
[1642279555342,0.54193552,43588.0,43584.0,0.00024066]
[1642279556043,0.25142586,43588.0,43584.0,0.00104598]
[1642279556242,0.25142586,43588.0,43575.0,0.92932194]
[1642279556446,0.25142586,43588.0,43577.0,0.00122093]
[1642279556844,0.25142586,43588.0,43580.0,0.58775628]
[1642279557443,0.29834506,43584.0,43580.0,0.58275628]
[1642279557646,0.29834506,43584.0,43576.0,0.10169902]
[1642279557946,0.29834506,43584.0,43577.0,1.13613893]
[1642279558244,0.29834506,43584.0,43578.0,0.00010314]
[1642279558445,0.29834506,43584.0,43579.0,0.375514]
[1642279558995,0.29834506,43584.0,43580.0,6.876e-05]
[1642279559598,0.29834506,43584.0,43580.0,0.00043307]
[1642279560097,0.25142586,43588.0,43580.0,0.00043307]
[1642279560300,0.25142586,43588.0,43571.0,1.92613994]
[1642279560495,0.18154976,43581.0,43575.0,0.0079277]
[1642279560696,0.18154976,43581.0,43576.0,0.375514]
[1642279561293,0.18154976,43581.0,43576.0,0.374514]
[1642279561495,0.48274937,43581.0,43576.0,0.364514]
[1642279561895,0.22340598,43581.0,43576.0,0.364514]
[1642279562099,0.21058961,43580.0,43576.0,0.359514]
[1642279564447,0.21058961,43580.0,43577.0,0.68578998]
[1642279564651,0.21058961,43580.0,43578.0,0.375514]
[1642279565049,0.21058961,43580.0,43576.0,0.00079407]
[1642279565449,0.21058961,43580.0,43575.0,0.73148998]
[1642279565649,0.21058961,43580.0,43576.0,0.37639607]
[1642279566293,0.21058961,43580.0,43576.0,0.96425858]
[1642279566694,0.21058961,43580.0,43576.0,0.96346451]
[1642279566893,0.21058961,43580.0,43576.0,0.96425858]
[1642279567093,0.21058961,43580.0,43577.0,0.58786251]
[1642279567298,0.21058961,43580.0,43578.0,0.375602]
[1642279569194,0.31297624,43582.0,43578.0,0.375602]
[1642279569394,0.00123717,43583.0,43577.0,0.58865655]
[1642279569794,6.876e-05,43582.0,43577.0,0.58865655]
[1642279570055,0.5557911,43585.0,43577.0,0.58865655]
[1642279570356,0.25308435,43581.0,43578.0,6.876e-05]
[1642279571252,0.25308435,43581.0,43577.0,0.5837253]
[1642279571451,0.25308435,43581.0,43577.0,0.58293127]
[1642279571652,0.25308435,43581.0,43577.0,0.5837253]
[1642279572152,0.25308435,43581.0,43576.0,0.68578998]
[1642279572754,0.21021833,43580.0,43576.0,0.68578998]
[1642279573797,0.21021833,43580.0,43575.0,0.68768401]
[1642279574197,0.21021833,43580.0,43576.0,0.375602]
[1642279574999,0.4816808,43580.0,43576.0,0.375602]
[1642279575201,0.4816808,43580.0,43574.0,0.68578998]
[1642279575397,0.4816808,43580.0,43575.0,0.375602]
[1642279576397,0.4816808,43580.0,43575.0,0.37638878]
[1642279576598,0.21021833,43580.0,43575.0,0.37638878]
[1642279577545,0.21021833,43580.0,43575.0,1.06139198]
[1642279577753,0.00093131,43582.0,43575.0,1.06217876]
[1642279578145,0.00093131,43582.0,43575.0,0.37638878]
[1642279578345,0.00093131,43582.0,43575.0,0.27638878]
[1642279578545,0.33723334,43583.0,43574.0,0.68578998]
[1642279578746,0.00093132,43582.0,43575.0,0.00078677]
[1642279578946,0.00100008,43582.0,43575.0,0.00078677]
[1642279579845,6.876e-05,43582.0,43574.0,0.58794686]
[1642279580045,0.00100008,43582.0,43575.0,0.00078677]
[1642279580450,0.35234513,43578.0,43575.0,0.00078677]
[1642279580847,0.35234513,43578.0,43576.0,0.375603]
[1642279581498,0.34646182,43578.0,43576.0,0.375603]
[1642279582194,0.34646182,43578.0,43576.0,0.331003]
[1642279582594,0.00122099,43577.0,43576.0,0.331003]
[1642279582794,0.00122099,43577.0,43575.0,0.00083856]
[1642279582996,0.00122099,43577.0,43576.0,0.375611]
[1642279583394,0.00122099,43577.0,43576.0,0.370611]
[1642279584951,0.00100005,43582.0,43576.0,0.370611]
[1642279585151,0.00100005,43582.0,43574.0,0.0007868]
[1642279585751,0.00100005,43582.0,43573.0,0.58794686]
[1642279585952,0.00100007,43582.0,43575.0,0.00078677]
[1642279586452,0.00100007,43582.0,43575.0,0.58873363]
[1642279586453,0.20029203,43576.0,43575.0,0.58873363]
[1642279586652,0.20029203,43576.0,43575.0,0.96433563]
[1642279587052,0.5226978,43578.0,43577.0,0.00892415]
[1642279587253,0.5226978,43578.0,43577.0,0.33972615]
[1642279587653,0.18996066,43578.0,43577.0,0.33972615]
[1642279588353,6.876e-05,43582.0,43577.0,0.33972615]
[1642279588555,0.00100007,43582.0,43575.0,0.58873364]
[1642279588799,0.36423564,43582.0,43575.0,0.58873364]
[1642279588996,0.46423564,43582.0,43576.0,0.58794686]
[1642279589198,0.00100007,43582.0,43576.0,0.58794686]
[1642279589398,6.876e-05,43582.0,43578.0,0.18295684]
[1642279589598,0.00100008,43582.0,43578.0,0.18295684]
[1642279590601,6.876e-05,43582.0,43578.0,0.18295684]
[1642279590803,0.0010001,43582.0,43578.0,0.18295684]
[1642279591202,0.0010001,43582.0,43578.0,0.7709037]
[1642279591401,0.0010001,43582.0,43579.0,0.375601]
[1642279591799,6.876e-05,43582.0,43579.0,0.375601]
[1642279592001,6.876e-05,43582.0,43579.0,0.96354786]
[1642279592452,6.876e-05,43582.0,43579.0,0.91864786]
[1642279593057,6.876e-05,43582.0,43581.0,0.58794686]
[1642279593859,0.00343924,43589.0,43580.0,2.04712467]
[1642279594061,0.72277504,43602.0,43584.0,0.5717]
[1642279594062,2.1318,43601.0,43584.0,0.5717]
[1642279594262,2.1318,43601.0,43585.0,0.29309356]
[1642279594263,8.595e-05,43587.0,43585.0,0.29309356]
[1642279594460,2.4207,43601.0,43587.0,1.3]
[1642279594660,2.4207,43601.0,43590.0,0.00129226]
[1642279594862,0.20073759,43598.0,43591.0,0.0457]
[1642279595261,0.29266211,43596.0,43591.0,0.0457]
[1642279595661,0.00013752,43595.0,43591.0,0.0457]
[1642279596208,0.00012033,43594.0,43593.0,0.58828382]
[1642279596404,0.00012033,43594.0,43593.0,0.86083234]
[1642279596904,0.00012033,43594.0,43593.0,0.27254852]
[1642279597103,0.00012033,43594.0,43593.0,1.29814252]
[1642279597306,0.00012033,43594.0,43593.0,1.25334252]
[1642279597904,0.00012033,43594.0,43593.0,1.19162634]
[1642279598106,0.00012033,43594.0,43593.0,0.96477782]
[1642279598710,0.00012033,43594.0,43593.0,0.376494]
[1642279599307,0.00012033,43594.0,43593.0,0.5944136]
[1642279599947,0.00012033,43594.0,43593.0,0.97857665]
[1642279600847,0.00012033,43594.0,43593.0,0.76065705]
[1642279601147,0.00012033,43594.0,43593.0,0.376494]
[1642279601549,0.00012033,43594.0,43593.0,0.5925443]
[1642279602350,0.00012033,43594.0,43593.0,0.331794]
[1642279604601,0.00012033,43594.0,43593.0,0.55230529]
[1642279605201,0.00012033,43594.0,43593.0,0.331794]
[1642279606607,0.00012033,43594.0,43593.0,0.377494]
[1642279607205,0.00012033,43594.0,43593.0,0.59280214]
[1642279607448,0.00012033,43594.0,43593.0,0.54820214]
[1642279607648,0.00012033,43594.0,43593.0,0.332894]
[1642279609354,0.00012033,43594.0,43593.0,0.33079597]
[1642279612499,0.00012033,43594.0,43593.0,0.28599597]
[1642279612899,0.00012033,43594.0,43593.0,0.24029597]
[1642279616056,0.40817436,43600.0,43594.0,0.6]
[1642279616254,0.00621984,43599.0,43595.0,0.2037722]
[1642279616456,0.00630579,43599.0,43595.0,0.2037722]
[1642279617059,0.00630579,43599.0,43592.0,0.38744768]
[1642279617453,0.2400525,43599.0,43591.0,0.0457]
[1642279617655,0.2400525,43599.0,43590.0,0.58828382]
[1642279617854,0.00630579,43599.0,43589.0,0.58828382]
[1642279618057,0.00630579,43599.0,43591.0,0.21983837]
[1642279618255,0.24233103,43599.0,43591.0,0.21983837]
[1642279618453,0.00093116,43598.0,43591.0,0.21983837]
[1642279619423,0.00630579,43599.0,43591.0,0.21983837]
[1642279619627,0.00093116,43598.0,43591.0,0.21983837]
[1642279619922,0.00093116,43598.0,43592.0,0.375544]
[1642279620723,0.00630579,43599.0,43598.0,0.1931599]
[1642279620921,0.32679796,43599.0,43598.0,0.1931599]
[1642279621121,0.32679796,43599.0,43590.0,1.09338747]
[1642279621322,0.32679796,43599.0,43591.0,0.58828382]
[1642279621621,6.876e-05,43598.0,43591.0,0.58828382]
[1642279621822,6.876e-05,43598.0,43592.0,0.375544]
[1642279622021,0.00099992,43598.0,43592.0,0.375544]
[1642279622225,0.00099992,43598.0,43593.0,0.20475518]
[1642279622449,0.00099992,43598.0,43594.0,0.182334]
[1642279622855,0.00099992,43598.0,43595.0,0.2171777]
[1642279623049,6.876e-05,43598.0,43593.0,0.20475518]
[1642279623249,0.00099994,43598.0,43593.0,0.20475518]
[1642279623549,0.00099994,43598.0,43594.0,0.375544]
[1642279624151,0.00099994,43598.0,43594.0,0.59065129]
[1642279624351,6.876e-05,43598.0,43594.0,0.59065129]
[1642279624552,0.00099994,43598.0,43594.0,0.21510729]
[1642279625454,6.876e-05,43598.0,43594.0,0.21510729]
[1642279625655,0.00099994,43598.0,43593.0,0.20475518]
[1642279626201,0.00099994,43598.0,43594.0,0.26148397]
[1642279626602,6.876e-05,43598.0,43594.0,0.26148397]
[1642279626803,0.00099994,43598.0,43594.0,0.26148397]
[1642279627604,0.00099994,43598.0,43594.0,0.21688397]
[1642279627804,6.876e-05,43598.0,43594.0,0.21688397]
[1642279628005,0.00099994,43598.0,43594.0,0.0457]
[1642279628404,0.00099994,43598.0,43595.0,0.20349616]
[1642279629005,6.876e-05,43598.0,43594.0,0.0457]
[1642279630053,6.876e-05,43598.0,43593.0,0.20475518]
[1642279630550,0.00099994,43598.0,43593.0,0.20475518]
[1642279630750,0.24873014,43598.0,43593.0,0.20475518]
[1642279630953,0.24873014,43598.0,43592.0,0.58828382]
[1642279631150,0.22896984,43597.0,43592.0,0.58828382]
[1642279631350,0.0002,43594.0,43592.0,0.58828382]
[1642279631952,0.0002,43594.0,43591.0,0.58828382]
[1642279632452,1.6,43593.0,43586.0,0.54445617]
[1642279632760,0.51528097,43592.0,43586.0,0.54445617]
[1642279632953,0.51528097,43592.0,43587.0,0.00080361]
[1642279633253,0.41863924,43591.0,43587.0,0.00080361]
[1642279633451,0.18865456,43591.0,43587.0,0.00080361]
[1642279633702,0.28865456,43591.0,43587.0,0.00080361]
[1642279633902,0.39906507,43590.0,43583.0,0.68578998]
[1642279634101,0.49906507,43590.0,43585.0,0.00079625]
[1642279635102,0.49906507,43590.0,43584.0,0.00010314]
[1642279635306,0.49906507,43590.0,43585.0,0.00079626]
[1642279635703,0.49906507,43590.0,43586.0,6.876e-05]
[1642279636706,0.49906507,43590.0,43585.0,0.00088221]
[1642279636906,0.49906507,43590.0,43586.0,6.876e-05]
[1642279637552,0.49906507,43590.0,43584.0,0.64115874]
[1642279637747,0.49906507,43590.0,43585.0,0.641955]